{"text_format":"1","workbook":"xlsx","n_sheets":4,"sheets":["Chart1","Application 2","cancellation note","note"],"not_rendered":{"charts":2,"images":0,"macros":1,"external_links":1,"defined_names":98,"comments":1,"pivot_tables":0},"unopened":[{"sheet":"Chart1","index":0,"reason":"not_a_worksheet"}],"bounds":{"document_bytes":16777216,"sheet_cells":100000,"rows_first":2000,"rows_last":500,"rows_between":2000,"halvings":0,"cell_chars":16384,"cell_head_chars":4096},"cells_cut":0,"cells_raw":0,"read":"whole","date_system":"1900"}

{"sheet":"Application 2","index":1,"n_rows":12,"n_cols":77,"rows_kept":12,"cut":false,"hidden":false,"merged":[]}
["Nodal SLDC Approval No","Approval Date","Customer Application No.","Application Date","Period of Transaction","Customer Name","HTSC No","EDC CUSTOMER","Sanction Demand ","Name of Sub-Station \n(Trans- Drawee)","Name of Sub-Station\n(Dist- Drawee)","Voltage Level (Transmission -Drawee)","Voltage Level \n(Distribution -Drawee)","EWA Quantum in Injection end(MW*) Peak Slots\n\n\n","EWA Quantum in Injection end(MW*)  \n\n\n\n","OA Quantum in Injection End Peak Slots\n\n","OA Quantum in Injection End  Non-Peak Slots\n\n","Receipt No","Receipt dt","Consumer Location","Name of Entity (Injecting)","Utility in which it is \nEmbedded \n(Injecting)","Name of Sub-Station (Trans - Injecting)","Name of Sub-Station\n(Distribution - Injecting)","Voltage Level \n(Transmission -Injecting)","Voltage Level (Distribution -Injecting)","Generator Location","Open Access Sought for (Period From date              )","Open Access Sought for (Period  To date           )","CE / Distribution","SE/Opn","EE/LD","EDC - Generator","Reference No","Wheeling date","EWA upto","Registeration code","Consumer Email ID","Generator Email ID","Generator Contact No.",null,"Tr.Chargescharges","Scheduling charges","System operation charges","Wheeling charges","Total"]
[821,null,"India Cements letter dt 04/05/21",null,"10/12/2025 to 31/12/2025","M/s The India cements Ltd, Dalavoi Village, Ariyalur",69094400042,"Perambalur","20000 KVA","Eachangadu 230 KV Auto SS/110KV SS","N/A","110 KV","N/A",13.666,13.666,9.8870000000000005,9.8870000000000005,"SBI COLLECT","1900-01-04","M/s The India cements Ltd, Dalavoi Village, Sendurai(TK), Ariyalur(DT) - 621730","M/s The India cements Ltd","TANTRANSCO","110 KV Thalaiyuthu Grid SS","N/A","110KV","N/A","M/s The India cements Ltd,No.93,Coromandal towers,Santhome High Road, Karpagam Avenue,Raja Anamalaipuram,Chennai -600028","2021-06-01","2021-06-30","Trichy","Trichy","Madurai","Tirunelveli","Lr.No.CE/GO/SE/CO/STU/ EE/OA/AEE 1/F.ICL  /R00/D. 344    /21, dt. 22 .03.2021 ","2021-03-22","2024-03-31",null,"eeabt@tnebnet.org","eeabt@tnebnet.org",null,null,{"$f":"22*24*P2*241.81","v":1262329.4481600001},{"$f":"209*22","v":4598},{"$f":"(IF((24*4.01*P2)>750,750,(24*4.01*P2)))*22","v":16500},null,{"$f":"SUM(AP2:AS2)","v":1283427.4481600001},null,null,1189582,null,null,null,null,null,null,null,null,null,null,null,null,null,null,null,null,null,null,null,null,null,null,323,null,42675,43190,0.625,0.625]
[822,null,"India Cements letter dt 04/05/21",null,"10/12/2025 to 31/12/2025","M/s The India cements Ltd, Sankari west (post)",69094220013,"Mettur","11800KVA","110/22 KV SS, Sankari","N/A","110 KV","N/A",6.194,6.194,4.1630000000000003,4.1630000000000003,"SBI COLLECT","2021-05-04","M/s The India cements Ltd, Sankari west(post), Salem District -637303","M/s The India cements Ltd","TANTRANSCO","110 KV Thalaiyuthu Grid SS","N/A","110KV","N/A","M/s The India cements Ltd,No.93,Coromandal towers,Santhome High Road, Karpagam Avenue,Raja Anamalaipuram,Chennai -600028","2021-06-01","2021-06-30","Erode","Salem","Madurai","Tirunelveli","Lr.No.CE/GO/SE/CO/STU/ EE/OA/AEE 1/F.ICL  /R00/D. 344    /21, dt. 22 .03.2021 ","2021-03-22","2024-03-31",null,null,null,null,null,{"$f":"22*24*P3*241.81","v":531513.85584000009},{"$f":"209*22","v":4598},{"$f":"(IF((24*4.01*P3)>750,750,(24*4.01*P3)))*22","v":8814.236640000001},null,{"$f":"SUM(AP3:AS3)","v":544926.09248000011}]
[null,null,null,null,"16/12/2025 to 31/12/2025","M/s Ultra Tech Cement Limited",69094400053,"Perambalur",null,"110KV",null,null,null,4.7869999999999999,4.7869999999999999,4.6829999999999998,4.6829999999999998,null,null,null,null,null,null,null,null,null,null,null,null,null,null,null,null,null,null,null,null,null,null,null,null,{"$f":"16*24*P4*241.81","v":434840.15231999999},{"$f":"209*16","v":3344},{"$f":"(IF((24*4.01*P4)>750,750,(24*4.01*P4)))*16","v":7211.0707199999997},null,445395.22304000001]
[null,null,null,null,null,null,null,null,null,null,null,null,"Total",{"$f":"SUM(N2:N4)","v":24.646999999999998},{"$f":"SUM(O2:O4)","v":24.646999999999998},18.733000000000001,{"$f":"SUM(Q2:Q4)","v":18.733000000000001},null,null,null,null,null,null,null,null,null,null,null,null,null,null,null,null,null,null,null,null,null,null,null,"Total",{"$f":"+SUM(AP2:AP4)","v":2228683.4563200003},{"$f":"+SUM(AQ2:AQ4)","v":12540},{"$f":"+SUM(AR2:AR4)","v":32525.307360000003},null,{"$f":"SUM(AT2:AT4)","v":2273748.7636800003}]
[]
[null,null,null,null,null,"M/s The India cements Ltd, Dalavoi Village, Ariyalur",69094400042,"Perambalur",null,null,null,null,null,null,null,null,null,null,null,null,null,null,null,null,null,null,null,null,null,null,null,null,null,null,null,null,null,null,null,null,null,{"$f":"13*24*P7*241.81","v":0},{"$f":"209*13","v":2717},{"$f":"(IF((24*4.01*P7)>750,750,(24*4.01*P7)))*13","v":0},null,{"$f":"SUM(AP7:AS7)","v":2717},null,null,379273.44,{"$f":"AT7-AW7","v":-376556.44}]
[]
[null,null,null,null,"01/11/2025 to 30/11/2025","M/s The India cements Ltd, Dalavoi Village, Ariyalur",69094400042,"Perambalur"]
[null,null,null,null,"01/11/2025 to 30/11/2025","M/s The India cements Ltd, Sankari west (post)",69094220013,"Mettur"]
[null,null,null,null,"01/11/2025 to 30/11/2025","M/s Ultra Tech Cement Limited",69094400053,"Perambalur"]
[null,null,null,null,null,null,null,null,null,null,null,null,null,null,"Total",{"$f":"SUM(P9:P11)","v":0},{"$f":"SUM(Q9:Q11)","v":0}]

{"sheet":"cancellation note","index":2,"n_rows":27,"n_cols":16,"rows_kept":27,"cut":false,"hidden":false,"merged":[[13,9,13,12],[13,13,14,13],[13,14,13,15],[18,1,18,15],[0,0,0,15],[3,14,3,15],[9,0,9,15],[10,1,10,15],[13,1,14,1],[13,2,14,2],[13,3,14,3],[13,4,14,4],[13,5,13,7],[13,8,14,8]]}
["TANTRANSCO"]
[null,null,null,null,null,null,null,null,null,null,null,null,null,null,null,"                 Office of the Superintending Engineer,"]
["                                                                                                            ",null,null,null,null,null,null,null,null,null,null,null,null,null,null," Open Access & Co Ordination,"]
["                                                                              ",null,null,null,null,null,null,null,null,null,null,null,null,null,"Chennai-2"]
["NOTE :"]
[]
[null,"Sub: Elecy –  OPG Power Gen Unit 1- CPP wheeling  to HT Consumers -Short Term Open Access  Approval - cancellation Requested – Reg."]
[]
["                 ","Ref:","Company's Lr Ref.",{"$f":"'Application 2'!#REF!","v":{"$error":"#REF!"}}]
["******"]
["I","The consolidated STOA applications of the captive users  received from  M/s  OPG Power Gen Unit 1  vide ref. cited is put up for  cancellation of STOA approval from 13/06/2018"]
[]
[]
[null,"Sl.No.","Name of applicant","HTSC","EDC","Energy Wheeling Approval (EWA)",null,null,"SLDC Approval No.","Open Access approved details",null,null,null,"Cancellation request from","Processing fee of Rs. 5000 Paid vide "]
[null,null,null,null,null,"Date","Peak MW","Remaining Hrs MW",null,"From date","To date","Qtm MW\nPeak Hr","Qtm MW\nRemaining Hrs",null,"receipt ref.","Dated"]
[null,1,{"$f":"'Application 2'!#REF!","v":{"$error":"#REF!"}},{"$f":"'Application 2'!#REF!","v":{"$error":"#REF!"}},{"$f":"'Application 2'!#REF!","v":{"$error":"#REF!"}},{"$f":"'Application 2'!#REF!","v":{"$error":"#REF!"}},{"$f":"'Application 2'!#REF!","v":{"$error":"#REF!"}},{"$f":"'Application 2'!#REF!","v":{"$error":"#REF!"}},{"$f":"'Application 2'!#REF!","v":{"$error":"#REF!"}},{"$f":"'Application 2'!#REF!","v":{"$error":"#REF!"}},{"$f":"'Application 2'!#REF!","v":{"$error":"#REF!"}},{"$f":"'Application 2'!#REF!","v":{"$error":"#REF!"}},{"$f":"'Application 2'!#REF!","v":{"$error":"#REF!"}},{"$f":"'Application 2'!#REF!","v":{"$error":"#REF!"}},{"$f":"'Application 2'!#REF!","v":{"$error":"#REF!"}},{"$f":"'Application 2'!#REF!","v":{"$error":"#REF!"}}]
[null,2,{"$f":"'Application 2'!#REF!","v":{"$error":"#REF!"}},{"$f":"'Application 2'!#REF!","v":{"$error":"#REF!"}},{"$f":"'Application 2'!#REF!","v":{"$error":"#REF!"}},{"$f":"'Application 2'!#REF!","v":{"$error":"#REF!"}},{"$f":"'Application 2'!#REF!","v":{"$error":"#REF!"}},{"$f":"'Application 2'!#REF!","v":{"$error":"#REF!"}},{"$f":"'Application 2'!#REF!","v":{"$error":"#REF!"}},{"$f":"'Application 2'!#REF!","v":{"$error":"#REF!"}},{"$f":"'Application 2'!#REF!","v":{"$error":"#REF!"}},{"$f":"'Application 2'!#REF!","v":{"$error":"#REF!"}},{"$f":"'Application 2'!#REF!","v":{"$error":"#REF!"}},{"$f":"'Application 2'!#REF!","v":{"$error":"#REF!"}},{"$f":"'Application 2'!#REF!","v":{"$error":"#REF!"}},{"$f":"'Application 2'!#REF!","v":{"$error":"#REF!"}}]
[null,null,"Total",null,null,null,null,null,null,null,null,{"$f":"+L17+L16","v":{"$error":"#REF!"}},{"$f":"+M17+M16","v":{"$error":"#REF!"}}]
["II","As the requests are in line with the Hon’ble TNERC’s Intra State Open Access Regulations 2014, it is suggested that the generator’s request may be considered and  cancellation of Open Access approval may be granted"]
[]
[null,null,"For approval please."]
[]
[null,null,"On approval, the revised Open Access approval in FORMAT-ST2 will be generated in PDF and uploaded in the SLDC website please."]
[]
[]
[]
[null,null,null,null,null,"AEE/ABT",null,null,null,"EE/ABT",null,null,null,null,"SE/OA&CO"]

{"sheet":"note","index":3,"n_rows":34,"n_cols":17,"rows_kept":34,"cut":false,"hidden":false,"merged":[[26,13,26,16],[21,10,21,13],[12,16,13,16],[12,14,12,15],[18,1,18,14],[13,14,13,15],[0,0,0,15],[9,0,9,15],[12,1,13,1],[12,2,13,2],[12,3,13,3],[12,4,13,4],[12,8,12,9],[12,10,12,13],[12,5,13,5],[12,6,13,6],[10,1,10,14],[6,1,6,16]]}
["TANTRANSCO"]
[null,null,null,null,null,null,null,null,null,null,null,null,null,null,null,"                 Office of the Superintending Engineer,"]
["                                                                                                            ",null,null,null,null,null,null,null,null,null,null,null,null,null,null," Commercial Operation, Ch-2"]
["                                                                              "]
["NOTE :"]
[]
[null,"Sub: Elecy – Short Term Open Access - M/s The India Cements- approval under CPP wheeling  to HT Consumers - approval requested – Reg."]
[]
["                 ","Ref:",{"$f":"+'Application 2'!C2","v":"India Cements letter dt 04/05/21"},"dt",{"$f":"'Application 2'!D2","v":"00:00:00"}]
["******"]
["I","The consolidated STOA applications of the captive users received from M/s The India Cements vide ref. cited is put up for granting  approval."]
[]
[null,"Sl.No.","Name of applicant","HTSC","EDC","Name of Generator","Wheeling approval date","EWA","EWA quantum in MW (incl. of loss)",null,"Open Access approval sought",null,null,null,"Processing fee of Rs. 5000 Paid vide ",null,"Approval No."]
[null,null,null,null,null,null,null,"Period upto","Peak","Remaining Hrs","From date","To date","Peak Hr\nMW","Remaining Hrs MW","Payment ref."]
[null,1,{"$f":"'Application 2'!F2","v":"M/s The India cements Ltd, Dalavoi Village, Ariyalur"},{"$f":"'Application 2'!G2","v":69094400042},{"$f":"'Application 2'!H2","v":"Perambalur"},{"$f":"'Application 2'!U2","v":"M/s The India cements Ltd"},{"$f":"'Application 2'!AI2","v":"2021-03-22"},{"$f":"'Application 2'!AJ2","v":"2024-03-31"},{"$f":"'Application 2'!N2","v":13.666},{"$f":"'Application 2'!O2","v":13.666},{"$f":"'Application 2'!AB2","v":"2021-06-01"},{"$f":"'Application 2'!AC2","v":"2021-06-30"},{"$f":"'Application 2'!P2","v":9.8870000000000005},{"$f":"'Application 2'!Q2","v":9.8870000000000005},{"$f":"'Application 2'!R2","v":"SBI COLLECT"},{"$f":"+'Application 2'!S2","v":"1900-01-04"},{"$f":"'Application 2'!A2","v":821}]
[null,2,{"$f":"'Application 2'!F3","v":"M/s The India cements Ltd, Sankari west (post)"},{"$f":"'Application 2'!G3","v":69094220013},{"$f":"'Application 2'!H3","v":"Mettur"},{"$f":"'Application 2'!U3","v":"M/s The India cements Ltd"},{"$f":"'Application 2'!AI3","v":"2021-03-22"},{"$f":"'Application 2'!AJ3","v":"2024-03-31"},{"$f":"'Application 2'!N3","v":6.194},{"$f":"'Application 2'!O3","v":6.194},{"$f":"'Application 2'!AB3","v":"2021-06-01"},{"$f":"'Application 2'!AC3","v":"2021-06-30"},{"$f":"'Application 2'!P3","v":4.1630000000000003},{"$f":"'Application 2'!Q3","v":4.1630000000000003},{"$f":"'Application 2'!R3","v":"SBI COLLECT"},{"$f":"+'Application 2'!S3","v":"2021-05-04"},{"$f":"'Application 2'!A3","v":822}]
[null,3,{"$f":"'Application 2'!F4","v":"M/s Ultra Tech Cement Limited"},{"$f":"'Application 2'!G4","v":69094400053},{"$f":"'Application 2'!H4","v":"Perambalur"},{"$f":"'Application 2'!U4","v":"00:00:00"},{"$f":"'Application 2'!AI4","v":"00:00:00"},{"$f":"'Application 2'!AJ4","v":"00:00:00"},{"$f":"'Application 2'!N4","v":4.7869999999999999},{"$f":"'Application 2'!O4","v":4.7869999999999999},{"$f":"'Application 2'!AB4","v":"00:00:00"},{"$f":"'Application 2'!AC4","v":"00:00:00"},{"$f":"'Application 2'!P4","v":4.6829999999999998},{"$f":"'Application 2'!Q4","v":4.6829999999999998},{"$f":"'Application 2'!R4","v":0},{"$f":"+'Application 2'!S4","v":"00:00:00"},{"$f":"'Application 2'!A4","v":0}]
[null,null,null,null,null,null,null,null,null,null,"Total",null,{"$f":"M15+M16+M17","v":18.733000000000001},{"$f":"N15+N16+N17","v":18.733000000000001}]
["II","As the Open Access approval requests are in line with the Hon’ble TNERC’s Intra State Open Access Regulations 2014, it is suggested that the generator’s request may be considered and  approval may be granted"]
[null,null,"For approval please."]
[null,null,"On approval, the Open Access approval/cancellation  in FORMAT-ST2 will be generated in PDF and uploaded in the SLDC website please."]
[null,null,null,null,null,null,null,null,{"$f":"+SUM(I15:I15)","v":13.666},{"$f":"+SUM(J15:J15)","v":13.666}]
[]
[null,null,"AEE/OA","EE/OA",null,null,null,"SE/CO",null,null,null,"CE/GO"]
[]
[]
[null,null,null,null,null,null,null,null,null,null,null,null,null,"DIR/OPN (a/c)"]
[]
[]
[]
[]
[null,null,null,null,null,null,null,null,null,null,null,"EWA",242.06399999999999]
[null,null,null,null,null,null,null,null,null,null,"OA not applied","3 consumer",7.4180000000000001]
[null,null,null,null,null,null,null,null,null,null,null,null,{"$f":"+M32-M33","v":234.64599999999999}]